fUSD/lending_fUSD_20240904
["ID","MTS","AMOUNT","RATE_DAILY","PERIOD"]
[337112843,1725437433849,-334.50747262,0.000145,2]
[337112844,1725437433860,-2314.4383043,0.000145,2]
[337112845,1725437433871,-345.5,0.000145,2]
[337112846,1725437433883,-4096.59711232,0.000145,2]
[337112847,1725437433894,-3345.67823061,0.000145,2]
[337112853,1725437438341,-151.0,0.00014499,2]
[337112854,1725437438351,-151.0,0.00014499,2]
[337112855,1725437438360,-151.0,0.00014499,2]
[337112856,1725437438369,-3445.37344962,0.000145,2]
[337112857,1725437438380,-5231.0,0.000145,2]
[337112858,1725437438391,-1003.79606313,0.000145,2]
[337112859,1725437438402,-1850.73950302,0.000145,2]
[337112860,1725437438412,-285.25437,0.000145,2]
[337112861,1725437438423,-2146.17360397,0.000145,2]
[337112862,1725437438434,-855.09885338,0.000145,2]
[337112863,1725437438446,-504.3514221,0.000145,2]
[337112864,1725437438565,-5028.86099182,0.000145,2]
[337112865,1725437438575,-150.0,0.000145,2]
[337112866,1725437438585,-791.75,0.000145,2]
[337112867,1725437438594,-791.75,0.000145,2]
[337112868,1725437438603,-151.0,0.000145,2]
[337112869,1725437438613,-151.0,0.000145,2]
[337112870,1725437438622,-151.0,0.000145,2]
[337112871,1725437438631,-1001.275293,0.000145,2]
[337112872,1725437438640,-1001.275293,0.000145,2]
[337112873,1725437438649,-151.0,0.000145,2]
[337112874,1725437438658,-151.0,0.000145,2]
[337112875,1725437438667,-151.0,0.000145,2]
[337112876,1725437438677,-151.0,0.000145,2]
[337112877,1725437438686,-151.0,0.000145,2]
[337112878,1725437438695,-151.0,0.000145,2]
[337112879,1725437438704,-151.0,0.000145,2]
[337112880,1725437438714,-151.0,0.000145,2]
[337112881,1725437438723,-151.0,0.000145,2]
[337112882,1725437438732,-151.0,0.000145,2]
[337112883,1725437438741,-151.0,0.000145,2]
[337112884,1725437438750,-151.0,0.000145,2]
[337112885,1725437438760,-333.32,0.000145,2]
[337112886,1725437438769,-150.0,0.000145,2]
[337112887,1725437438778,-197.053058,0.000145,2]
[337112888,1725437438787,-151.386687,0.000145,2]
[337112889,1725437438796,-151.0,0.000145,2]
[337112891,1725437438811,-151.0,0.000145,2]
[337112893,1725437438821,-151.0,0.000145,2]
[337112894,1725437438830,-151.0,0.000145,2]
[337112895,1725437438840,-151.0,0.000145,2]
[337112896,1725437438849,-151.0,0.000145,2]
[337112897,1725437438858,-151.0,0.000145,2]
[337112898,1725437438867,-151.0,0.000145,2]
[337112899,1725437438876,-151.0,0.000145,2]
[337112900,1725437438886,-151.0,0.000145,2]
[337112901,1725437438895,-2430.47872059,0.0001451,2]
[337112902,1725437438904,-150.0,0.00014548,2]
[337112903,1725437438913,-500.0,0.0001455,2]
[337112904,1725437438922,-500.0,0.0001455,2]
[337112905,1725437438931,-618.51738024,0.0001455,2]
[337112906,1725437438941,-500.0,0.0001455,2]
[337112907,1725437438950,-616.84,0.0001455,2]
[337112908,1725437438959,-500.0,0.0001455,2]
[337112909,1725437438968,-500.0,0.0001455,2]
[337112910,1725437438977,-500.0,0.0001455,2]
[337112911,1725437438986,-974.34,0.0001455,2]
[337112912,1725437438995,-500.0,0.0001455,2]
[337112913,1725437439005,-500.0,0.0001455,2]
[337112914,1725437439015,-500.0,0.0001455,2]
[337112915,1725437439024,-150.0,0.0001455,2]
[337112916,1725437439033,-500.0,0.0001455,2]
[337112917,1725437439042,-500.0,0.0001455,2]
[337112918,1725437439054,-500.0,0.0001455,2]
[337112919,1725437439063,-500.0,0.0001455,2]
[337112920,1725437439073,-500.0,0.0001455,2]
[337112921,1725437439082,-500.0,0.0001455,2]
[337112922,1725437439091,-268.15752571,0.0001455,2]
[337112923,1725437439103,-231.84247429,0.0001455,2]
[337112924,1725437439112,-500.0,0.0001455,2]
[337112925,1725437439122,-96.28288512,0.0001455,2]
[337112934,1725437440244,-151.0,0.00014499,2]
[337112935,1725437440254,-151.0,0.000145,2]
[337112936,1725437440264,-403.71711488,0.0001455,2]
[337112937,1725437440273,-719.06,0.0001455,2]
[337112938,1725437440283,-500.0,0.0001455,2]
[337112939,1725437440292,-500.0,0.0001455,2]
[337112940,1725437440305,-500.0,0.0001455,2]
[337112941,1725437440315,-500.0,0.0001455,2]
[337112942,1725437440324,-500.0,0.0001455,2]
[337112943,1725437440333,-977.2,0.0001455,2]
[337112944,1725437440342,-500.0,0.0001455,2]
[337112945,1725437440351,-500.0,0.0001455,2]
[337112946,1725437440361,-500.0,0.0001455,2]
[337112947,1725437440369,-517.92,0.0001455,2]
[337112948,1725437440379,-500.0,0.0001455,2]
[337112949,1725437440388,-3159.2,0.0001455,2]
[337112950,1725437440397,-500.0,0.0001455,2]
[337112951,1725437440406,-500.0,0.0001455,2]
[337112952,1725437440415,-500.0,0.0001455,2]
[337112953,1725437440425,-52109.89085964,0.0001455,2]
[337112954,1725437440436,-1041.85,0.0001455,2]
[337112955,1725437440447,-26148.17672116,0.0001455,2]
[337112956,1725437440456,-151.0,0.0001455,2]
[337112957,1725437440465,-151.0,0.0001455,2]
[337112958,1725437440474,-151.0,0.0001455,2]
[337112959,1725437440484,-151.0,0.0001455,2]
[337112960,1725437440493,-151.0,0.0001455,2]
[337112961,1725437440505,-156.094182,0.0001455,2]
[337112962,1725437440514,-151.0,0.0001455,2]
[337112963,1725437440524,-151.0,0.0001455,2]
[337112964,1725437440534,-151.62,0.0001455,2]
[337112965,1725437440543,-151.0,0.0001455,2]
[337112966,1725437440555,-151.0,0.0001455,2]
[337112967,1725437440564,-151.0,0.0001455,2]
[337112968,1725437440574,-97322.6261219,0.0001455,2]
[337112969,1725437440585,-1159.34179598,0.00014551,2]
[337112970,1725437440595,-151.0,0.00014551,2]
[337112971,1725437440604,-162.2887413,0.00014553,2]
[337112972,1725437440614,-1159.34179598,0.00014554,2]
[337112973,1725437440623,-151.62,0.00014554,2]
[337112974,1725437440633,-500.0,0.00014558,2]
[337112975,1725437440642,-1058.14722631,0.0001456,5]
[337112976,1725437440651,-1058.14722631,0.0001456,5]
[337112977,1725437440660,-1058.14722631,0.0001456,5]
[337112979,1725437440669,-1058.14722631,0.0001456,5]
[337112980,1725437440678,-1058.14722631,0.0001456,5]
[337112981,1725437440687,-1058.14722631,0.0001456,5]
[337112982,1725437440696,-910.09,0.0001456,2]
[337112983,1725437440705,-500.0,0.0001456,2]
[337112984,1725437440714,-1984.63,0.0001456,2]
[337112985,1725437440723,-818.74,0.0001456,2]
[337112986,1725437440732,-540.75471784,0.0001456,2]
[337112987,1725437440741,-500.0,0.0001456,2]
[337112988,1725437440750,-500.0,0.0001456,2]
[337112989,1725437440759,-500.0,0.0001456,2]
[337112990,1725437440768,-500.0,0.0001456,2]
[337112991,1725437440777,-500.0,0.0001456,2]
[337112992,1725437440786,-500.0,0.0001456,2]
[337112993,1725437440795,-500.0,0.0001456,2]
[337112994,1725437440806,-500.0,0.0001456,2]
[337112995,1725437440814,-500.0,0.0001456,2]
[337112996,1725437440823,-500.0,0.0001456,2]
[337112997,1725437440832,-331.47018901,0.0001456,2]
[337112998,1725437440841,-500.0,0.0001456,2]
[337112999,1725437440850,-500.0,0.0001456,2]
[337113000,1725437440859,-500.0,0.0001456,2]
[337113001,1725437440869,-617.54,0.0001456,2]
[337113002,1725437440878,-500.0,0.0001456,2]
[337113003,1725437440888,-500.0,0.0001456,2]
[337113004,1725437440897,-500.0,0.0001456,2]
[337113005,1725437440906,-710.37,0.0001456,2]
[337113006,1725437440915,-500.0,0.0001456,2]
[337113007,1725437440925,-500.0,0.0001456,2]
[337113008,1725437440934,-856.68,0.0001456,2]
[337113009,1725437440943,-828.34,0.0001456,2]
[337113010,1725437440953,-500.0,0.0001456,2]
[337113011,1725437440962,-1006.55,0.0001456,2]
[337113012,1725437440971,-500.0,0.0001456,2]
[337113013,1725437440980,-151.71421497,0.0001456,2]
[337113014,1725437440989,-500.0,0.0001456,2]
[337113015,1725437440998,-500.0,0.0001456,2]
[337113016,1725437441008,-500.0,0.0001456,2]
[337113017,1725437441017,-500.0,0.0001456,2]
[337113018,1725437441026,-500.0,0.0001456,2]
[337113019,1725437441035,-500.0,0.0001456,2]
[337113020,1725437441044,-500.0,0.0001456,2]
[337113021,1725437441055,-500.0,0.0001456,2]
[337113022,1725437441065,-500.0,0.0001456,2]
[337113023,1725437441074,-500.0,0.0001456,2]
[337113024,1725437441083,-150.0,0.0001456,2]
[337113025,1725437441092,-500.0,0.0001456,2]
[337113026,1725437441102,-500.0,0.0001456,2]
[337113027,1725437441111,-500.0,0.0001456,2]
[337113028,1725437441120,-669.37,0.0001456,2]
[337113029,1725437441130,-669.37,0.0001456,2]
[337113030,1725437441139,-1180.0,0.0001456,2]
[337113031,1725437441149,-500.0,0.0001456,2]
[337113032,1725437441158,-500.0,0.0001456,2]
[337113033,1725437441169,-661.46,0.0001456,2]
[337113034,1725437441178,-500.0,0.0001456,2]
[337113035,1725437441188,-1352.49,0.0001456,2]
[337113036,1725437441197,-1030.13,0.0001456,2]
[337113037,1725437441207,-500.0,0.0001456,2]
[337113038,1725437441216,-500.0,0.0001456,2]
[337113039,1725437441225,-500.0,0.0001456,2]
[337113040,1725437441234,-500.0,0.0001456,2]
[337113041,1725437441244,-160.123883,0.0001456,2]
[337113042,1725437441253,-151.0,0.0001456,2]
[337113043,1725437441262,-151.0,0.0001456,2]
[337113044,1725437441271,-151.722539,0.0001456,2]
[337113045,1725437441280,-500.0,0.0001456,2]
[337113046,1725437441289,-500.0,0.0001456,2]
[337113047,1725437441300,-500.0,0.0001456,2]
[337113048,1725437441309,-500.0,0.0001456,2]
[337113049,1725437441318,-500.0,0.0001456,2]
[337113050,1725437441327,-500.0,0.0001456,2]
[337113051,1725437441336,-500.0,0.0001456,2]
[337113052,1725437441345,-500.0,0.0001456,2]
[337113053,1725437441354,-156.352841,0.0001456,2]
[337113054,1725437441363,-500.0,0.0001456,2]
[337113055,1725437441372,-500.0,0.0001456,2]
[337113056,1725437441381,-290.129802,0.0001456,2]
[337113057,1725437441390,-500.0,0.0001456,2]
[337113058,1725437441400,-500.0,0.0001456,2]
[337113059,1725437441409,-526.12,0.0001456,2]
[337113060,1725437441418,-526.12,0.0001456,2]
[337113061,1725437441427,-1001.275293,0.0001456,2]
[337113062,1725437441437,-1001.275293,0.0001456,2]
[337113063,1725437441446,-1001.275293,0.0001456,2]
[337113064,1725437441456,-1001.275293,0.0001456,2]
[337113065,1725437441466,-500.0,0.0001456,2]
[337113066,1725437441475,-500.0,0.0001456,2]
[337113067,1725437441484,-151.0,0.0001456,2]
[337113068,1725437441493,-500.0,0.0001456,2]
[337113069,1725437441504,-500.0,0.0001456,2]
[337113070,1725437441513,-500.0,0.0001456,2]
[337113071,1725437441522,-500.0,0.0001456,2]
[337113072,1725437441532,-500.0,0.0001456,2]
[337113073,1725437441541,-500.0,0.0001456,2]
[337113074,1725437441552,-500.0,0.0001456,2]
[337113075,1725437441562,-500.0,0.0001456,2]
[337113076,1725437441571,-500.0,0.0001456,2]
[337113077,1725437441580,-500.0,0.0001456,2]
[337113078,1725437441590,-500.0,0.0001456,2]
[337113079,1725437441599,-500.0,0.0001456,2]
[337113080,1725437441608,-500.0,0.0001456,2]
[337113081,1725437441618,-500.0,0.0001456,2]
[337113082,1725437441627,-500.0,0.0001456,2]
[337113083,1725437441636,-500.0,0.0001456,2]
[337113084,1725437441645,-547.11074561,0.0001456,2]
[337113085,1725437441654,-500.0,0.0001456,2]
[337113086,1725437441663,-500.0,0.0001456,2]
[337113087,1725437441673,-500.0,0.0001456,2]
[337113088,1725437441682,-500.0,0.0001456,2]
[337113089,1725437441691,-274.12066497,0.0001456,2]
[337113090,1725437441700,-500.0,0.0001456,2]
[337113091,1725437441710,-531.03719877,0.0001456,2]
[337113092,1725437441719,-151.0,0.0001456,2]
[337113093,1725437441728,-151.0,0.0001456,2]
[337113094,1725437441737,-429.9677858,0.0001456,2]
[337113095,1725437441746,-500.0,0.0001456,2]
[337113096,1725437441755,-500.0,0.0001456,2]
[337113097,1725437441764,-381.37474969,0.0001456,2]
[337113098,1725437441774,-500.0,0.0001456,2]
[337113099,1725437441782,-500.0,0.0001456,2]
[337113100,1725437441791,-151.0,0.0001456,2]
[337113101,1725437441802,-151.0,0.0001456,2]
[337113102,1725437441811,-500.0,0.0001456,2]
[337113103,1725437441820,-500.0,0.0001456,2]
[337113104,1725437441829,-500.0,0.0001456,2]
[337113105,1725437441838,-500.0,0.0001456,2]
[337113106,1725437441847,-500.0,0.0001456,2]
[337113107,1725437441856,-500.0,0.0001456,2]
[337113108,1725437441865,-500.0,0.0001456,2]
[337113109,1725437441874,-500.0,0.0001456,2]
[337113110,1725437441883,-500.0,0.0001456,2]
[337113111,1725437441894,-500.0,0.0001456,2]
[337113112,1725437441903,-500.0,0.0001456,2]
[337113113,1725437441912,-500.0,0.0001456,2]
[337113114,1725437441921,-274.175516,0.0001456,2]
[337113115,1725437441930,-500.0,0.0001456,2]
[337113116,1725437441939,-500.0,0.0001456,2]
[337113117,1725437441948,-500.0,0.0001456,2]
[337113118,1725437441958,-500.0,0.0001456,2]
[337113119,1725437441967,-500.0,0.0001456,2]
[337113120,1725437441976,-500.0,0.0001456,2]
[337113121,1725437441987,-151.0,0.0001456,2]
[337113122,1725437441996,-151.0,0.0001456,2]
[337113123,1725437442006,-151.0,0.0001456,2]
[337113124,1725437442015,-151.0,0.0001456,2]
[337113125,1725437442024,-234.895034,0.0001456,2]
[337113126,1725437442033,-500.0,0.0001456,2]
[337113127,1725437442043,-500.0,0.0001456,2]
[337113128,1725437442056,-500.0,0.0001456,2]
[337113129,1725437442067,-500.0,0.0001456,2]
[337113130,1725437442077,-500.0,0.0001456,2]
[337113131,1725437442086,-500.0,0.0001456,2]
[337113132,1725437442095,-500.0,0.0001456,2]
[337113133,1725437442104,-252.41879711,0.0001456,2]
[337113134,1725437442114,-500.0,0.0001456,2]
[337113135,1725437442123,-155.91451742,0.0001456,2]
[337113136,1725437442132,-500.0,0.0001456,2]
[337113137,1725437442142,-500.0,0.0001456,2]
[337113138,1725437442151,-500.0,0.0001456,2]
[337113139,1725437442160,-586.54016772,0.0001456,2]
[337113140,1725437442170,-497.98065735,0.0001456,2]
[337113141,1725437442179,-500.0,0.0001456,2]
[337113142,1725437442189,-500.0,0.0001456,2]
[337113143,1725437442198,-357.22015563,0.0001456,2]
[337113144,1725437442207,-151.0,0.0001456,2]
[337113145,1725437442217,-151.0,0.0001456,2]
[337113146,1725437442226,-151.0,0.0001456,2]
[337113147,1725437442235,-151.0,0.0001456,2]
[337113148,1725437442244,-151.0,0.0001456,2]
[337113149,1725437442254,-151.0,0.0001456,2]
[337113150,1725437442264,-5217.03808191,0.0001456,2]
[337113151,1725437442273,-579.67089799,0.00014561,2]
[337113152,1725437442282,-162.2887413,0.00014561,2]
[337113153,1725437442291,-1001.275293,0.00014561,2]
[337113154,1725437442300,-1001.275293,0.00014561,2]
[337113155,1725437442317,-151.0,0.00014561,2]
[337113156,1725437442326,-151.0,0.00014561,2]
[337113157,1725437442336,-162.2887413,0.00014561,2]
[337113158,1725437442346,-500.0,0.00014563,2]
[337113159,1725437442355,-500.0,0.00014563,2]
[337113160,1725437442365,-616.84,0.00014563,2]
[337113161,1725437442374,-500.0,0.00014563,2]
[337113162,1725437442383,-500.0,0.00014563,2]
[337113163,1725437442392,-500.0,0.00014563,2]
[337113164,1725437442401,-974.34,0.00014563,2]
[337113165,1725437442410,-500.0,0.00014563,2]
[337113166,1725437442420,-500.0,0.00014563,2]
[337113167,1725437442429,-500.0,0.00014563,2]
[337113168,1725437442438,-150.0,0.00014563,2]
[337113169,1725437442447,-246.06651522,0.00014563,2]
[337113170,1725437442456,-500.0,0.00014563,2]
[337113171,1725437442465,-500.0,0.00014563,2]
[337113172,1725437442474,-500.0,0.00014563,2]
[337113173,1725437442483,-581.48125893,0.00014563,2]
[337113174,1725437442492,-500.0,0.00014563,2]
[337113175,1725437442503,-500.0,0.00014563,2]
[337113176,1725437442513,-500.0,0.00014563,2]
[337113177,1725437442522,-500.0,0.00014563,2]
[337113178,1725437442532,-719.06,0.00014563,2]
[337113179,1725437442541,-500.0,0.00014563,2]
[337113180,1725437442550,-500.0,0.00014563,2]
[337113181,1725437442560,-500.0,0.00014563,2]
[337113182,1725437442569,-500.0,0.00014563,2]
[337113183,1725437442578,-500.0,0.00014563,2]
[337113184,1725437442589,-977.2,0.00014563,2]
[337113185,1725437442599,-500.0,0.00014563,2]
[337113186,1725437442608,-500.0,0.00014563,2]
[337113187,1725437442618,-500.0,0.00014563,2]
[337113188,1725437442627,-517.92,0.00014563,2]
[337113189,1725437442637,-500.0,0.00014563,2]
[337113190,1725437442647,-3159.2,0.00014563,2]
[337113191,1725437442656,-500.0,0.00014563,2]
[337113192,1725437442665,-500.0,0.00014563,2]
[337113193,1725437442674,-500.0,0.00014563,2]
[337113194,1725437442684,-151.0,0.00014563,2]
[337113195,1725437442693,-151.0,0.00014563,2]
[337113196,1725437442703,-151.0,0.00014563,2]
[337113197,1725437442712,-11208.3841906,0.00014564,2]
[337113198,1725437442722,-1640.3993931,0.00014564,2]
[337113199,1725437442731,-1001.275293,0.00014564,2]
[337113200,1725437442741,-1001.275293,0.00014564,2]
[337113201,1725437442751,-5295.6896822,0.00014564,2]
[337113202,1725437442761,-151.0,0.00014564,2]
[337113203,1725437442770,-735.7195419,0.00014564,2]
[337113204,1725437442779,-156.023078,0.00014564,2]
[337113205,1725437442789,-753.6752824,0.00014564,2]
[337113206,1725437442798,-52328.8079493,0.00014564,2]
[337113207,1725437442809,-151.0,0.00014564,2]
[337113208,1725437442818,-151.0,0.00014564,2]
[337113209,1725437442827,-151.0,0.00014564,2]
[337113210,1725437442837,-2430.47872059,0.00014566,2]
[337113211,1725437442846,-160.52875922,0.00014566,2]
[337113212,1725437442856,-160.52875922,0.00014568,2]
[337113213,1725437442865,-500.0,0.00014569,2]
[337113214,1725437442874,-500.0,0.00014569,2]
[337113215,1725437442884,-500.0,0.00014569,2]
[337113216,1725437442893,-500.0,0.00014569,2]
[337113217,1725437442902,-669.37,0.00014569,2]
[337113218,1725437442912,-500.0,0.00014569,2]
[337113219,1725437442921,-500.0,0.00014569,2]
[337113220,1725437442931,-500.0,0.00014569,2]
[337113221,1725437442940,-500.0,0.00014569,2]
[337113222,1725437442950,-500.0,0.00014569,2]
[337113223,1725437442959,-500.0,0.00014569,2]
[337113224,1725437442969,-500.0,0.00014569,2]
[337113225,1725437442979,-526.12,0.00014569,2]
[337113226,1725437442988,-500.0,0.00014569,2]
[337113227,1725437442998,-500.0,0.00014569,2]
[337113228,1725437443008,-500.0,0.00014569,2]
[337113229,1725437443017,-500.0,0.00014569,2]
[337113231,1725437443027,-500.0,0.00014569,2]
[337113232,1725437443037,-550.64144641,0.00014569,2]
[337113233,1725437443046,-388.1855915,0.00014569,2]
[337113234,1725437443057,-500.0,0.00014569,2]
[337113235,1725437443066,-500.0,0.00014569,2]
[337113236,1725437443076,-500.0,0.00014569,2]
[337113237,1725437443086,-500.0,0.00014569,2]
[337113238,1725437443096,-503.38124907,0.00014569,2]
[337113239,1725437443105,-500.0,0.00014569,2]
[337113240,1725437443115,-500.0,0.00014569,2]
[337113241,1725437443124,-500.0,0.00014569,2]
[337113242,1725437443133,-500.0,0.00014569,2]
[337113243,1725437443143,-500.0,0.00014569,2]
[337113244,1725437443153,-500.0,0.00014569,2]
[337113245,1725437443163,-500.0,0.00014569,2]
[337113246,1725437443172,-500.0,0.00014569,2]
[337113247,1725437443181,-500.0,0.00014569,2]
[337113248,1725437443191,-500.0,0.00014569,2]
[337113249,1725437443200,-500.0,0.00014569,2]
[337113250,1725437443211,-500.0,0.00014569,2]
[337113251,1725437443220,-500.0,0.00014569,2]
[337113252,1725437443229,-500.0,0.00014569,2]
[337113253,1725437443239,-117.81075018,0.00014569,2]
[337113254,1725437443636,-151.0,0.0001455,2]
[337113256,1725437443646,-42.71800904,0.00014569,2]
[337113258,1725437443655,-320.91406874,0.0001457,5]
[337113260,1725437443666,-455.28848318,0.0001457,5]
[337113262,1725437443678,-281.94467439,0.0001457,5]
[337113265,1725437443687,-1058.14722634,0.0001457,5]
[337113267,1725437443697,-910.09,0.0001457,2]
[337113269,1725437443706,-910.09,0.0001457,2]
[337113271,1725437443715,-910.09,0.0001457,2]
[337113273,1725437443724,-910.09,0.0001457,2]
[337113299,1725437443964,-910.09,0.0001457,2]
[337113301,1725437443974,-500.0,0.0001457,2]
[337113303,1725437443983,-500.0,0.0001457,2]
[337113305,1725437443992,-500.0,0.0001457,2]
[337113307,1725437444001,-500.0,0.0001457,2]
[337113309,1725437444011,-500.0,0.0001457,2]
[337113311,1725437444020,-1253.37849299,0.0001457,2]
[337113314,1725437444032,-460.63094984,0.0001457,2]
[337113319,1725437444075,-171.014218,0.0001455,2]
[337113321,1725437444084,-270.62055717,0.0001457,2]
[337113323,1725437444093,-117.77129084,0.0001457,2]
[337113325,1725437444104,-1866.85870916,0.0001457,2]
[337113327,1725437444114,-1984.63,0.0001457,2]
[337113329,1725437444123,-1984.63,0.0001457,2]
[337113331,1725437444132,-818.74,0.0001457,2]
[337113333,1725437444141,-1984.63,0.0001457,2]
[337113335,1725437444150,-818.74,0.0001457,2]
[337113337,1725437444161,-818.74,0.0001457,2]
[337113339,1725437444170,-818.74,0.0001457,2]
[337113340,1725437444180,-818.74,0.0001457,2]
[337113341,1725437444190,-471.85246728,0.0001457,2]
[337113342,1725437444202,-28.14753272,0.0001457,2]
[337113343,1725437444212,-253.12953051,0.0001457,2]
[337113344,1725437444223,-246.87046949,0.0001457,2]
[337113345,1725437444233,-500.0,0.0001457,2]
[337113346,1725437444242,-500.0,0.0001457,2]
[337113347,1725437444252,-500.0,0.0001457,2]
[337113348,1725437444261,-500.0,0.0001457,2]
[337113349,1725437444271,-500.0,0.0001457,2]
[337113350,1725437444281,-500.0,0.0001457,2]
[337113351,1725437444290,-500.0,0.0001457,2]
[337113352,1725437444299,-500.0,0.0001457,2]
[337113353,1725437444311,-500.0,0.0001457,2]
[337113354,1725437444320,-500.0,0.0001457,2]
[337113355,1725437444329,-500.0,0.0001457,2]
[337113357,1725437444338,-540.95703557,0.0001457,2]
[337113359,1725437444348,-500.0,0.0001457,2]
[337113361,1725437444357,-500.0,0.0001457,2]
[337113363,1725437444366,-500.0,0.0001457,2]
[337113365,1725437444375,-500.0,0.0001457,2]
[337113367,1725437444385,-500.0,0.0001457,2]
[337113369,1725437444394,-500.0,0.0001457,2]
[337113371,1725437444405,-500.0,0.0001457,2]
[337113373,1725437444415,-500.0,0.0001457,2]
[337113375,1725437444425,-246.20427367,0.0001457,2]
[337113377,1725437444434,-500.0,0.0001457,2]
[337113379,1725437444443,-500.0,0.0001457,2]
[337113381,1725437444453,-500.0,0.0001457,2]
[337113383,1725437444462,-500.0,0.0001457,2]
[337113385,1725437444471,-500.0,0.0001457,2]
[337113387,1725437444480,-500.0,0.0001457,2]
[337113389,1725437444490,-500.0,0.0001457,2]
[337113391,1725437444502,-500.0,0.0001457,2]
[337113393,1725437444513,-500.0,0.0001457,2]
[337113395,1725437444522,-500.0,0.0001457,2]
[337113397,1725437444531,-500.0,0.0001457,2]
[337113398,1725437444540,-500.0,0.0001457,2]
[337113400,1725437444550,-500.0,0.0001457,2]
[337113402,1725437444562,-500.0,0.0001457,2]
[337113404,1725437444571,-500.0,0.0001457,2]
[337113406,1725437444582,-500.0,0.0001457,2]
[337113408,1725437444592,-500.0,0.0001457,2]
[337113410,1725437444602,-500.0,0.0001457,2]
[337113412,1725437444611,-622.90773213,0.0001457,2]
[337113414,1725437444620,-500.0,0.0001457,2]
[337113416,1725437444629,-500.0,0.0001457,2]
[337113418,1725437444639,-500.0,0.0001457,2]
[337113420,1725437444648,-500.0,0.0001457,2]
[337113422,1725437444657,-500.0,0.0001457,2]
[337113424,1725437444666,-500.64271035,0.0001457,2]
[337113426,1725437444676,-500.0,0.0001457,2]
[337113428,1725437444686,-500.0,0.0001457,2]
[337113430,1725437444695,-500.0,0.0001457,2]
[337113432,1725437444704,-486.93,0.0001457,2]
[337113434,1725437444713,-500.0,0.0001457,2]
[337113436,1725437444722,-500.0,0.0001457,2]
[337113438,1725437444731,-500.0,0.0001457,2]
[337113440,1725437444740,-500.0,0.0001457,2]
[337113442,1725437444749,-500.0,0.0001457,2]
[337113444,1725437444759,-500.0,0.0001457,2]
[337113446,1725437444768,-500.0,0.0001457,2]
[337113448,1725437444777,-500.0,0.0001457,2]
[337113450,1725437444787,-500.0,0.0001457,2]
[337113452,1725437444795,-260.69794587,0.0001457,2]
[337113453,1725437444806,-500.0,0.0001457,2]
[337113455,1725437444824,-500.0,0.0001457,2]
[337113457,1725437444834,-500.0,0.0001457,2]
[337113459,1725437444843,-500.0,0.0001457,2]
[337113461,1725437444852,-500.0,0.0001457,2]
[337113463,1725437444861,-500.0,0.0001457,2]
[337113465,1725437444871,-500.0,0.0001457,2]
[337113467,1725437444880,-255.8100121,0.0001457,2]
[337113469,1725437444890,-617.54,0.0001457,2]
[337113471,1725437444899,-617.54,0.0001457,2]
[337113473,1725437444909,-617.54,0.0001457,2]
[337113475,1725437444918,-617.54,0.0001457,2]